[Event "Titled Tuesday Blitz March 22 Early 2022"]
[White "Artemenko, Oleg"]
[Black "Krzywda, Andrzej"]
[WhiteFideId "14201798"]
[BlackFideId "1114565"]
[WhiteElo "2287"]
[BlackElo "2098"]
[Result "1-0"]
[Round "08"]
[TimeControl "180+1"]
[Date "2022.03.22"]
[WhiteClock "0:01:37"]
[BlackClock "0:00:05"]

1. d4 {[%clk 0:03:00]}  Nf6 {[%clk 0:02:58]} 2. Nc3 {[%clk 0:03:00]}  d5 {[%clk 0:02:55]} 3. Bf4 {[%clk 0:03:00]}  g6 {[%clk 0:02:53]} 4. Qd2 {[%clk 0:03:00]}  Bg7 {[%clk 0:02:52]} 5. O-O-O {[%clk 0:03:01]}  c6 {[%clk 0:02:40]} 6. Bh6 {[%clk 0:03:00]}  Bxh6 {[%clk 0:02:33]} 7. Qxh6 {[%clk 0:03:00]}  Qd6 {[%clk 0:02:26]} 8. f3 {[%clk 0:02:58]}  Bf5 {[%clk 0:02:10]} 9. g4 {[%clk 0:02:56]}  Be6 {[%clk 0:02:00]} 10. h4 {[%clk 0:02:54]}  Nbd7 {[%clk 0:01:49]} 11. h5 {[%clk 0:02:52]}  O-O-O {[%clk 0:01:45]} 12. Nh3 {[%clk 0:02:50]}  Qb4 {[%clk 0:01:31]} 13. Nf4 {[%clk 0:02:46]}  Nb6 {[%clk 0:01:29]} 14. e3 {[%clk 0:02:44]}  Bxg4 {[%clk 0:01:18]} 15. fxg4 {[%clk 0:02:40]}  Nxg4 {[%clk 0:01:19]} 16. Bh3 {[%clk 0:02:32]}  f5 {[%clk 0:01:04]} 17. Bxg4 {[%clk 0:02:31]}  fxg4 {[%clk 0:01:05]} 18. hxg6 {[%clk 0:02:30]}  hxg6 {[%clk 0:01:01]} 19. Qxg6 {[%clk 0:02:30]}  Nc4 {[%clk 0:00:53]} 20. Qxg4+ {[%clk 0:02:29]}  Kb8 {[%clk 0:00:53]} 21. Nd3 {[%clk 0:02:29]}  Qa5 {[%clk 0:00:53]} 22. Qg3+ {[%clk 0:02:22]}  Ka8 {[%clk 0:00:47]} 23. Rxh8 {[%clk 0:02:19]}  Rxh8 {[%clk 0:00:48]} 24. Rg1 {[%clk 0:02:18]}  a6 {[%clk 0:00:42]} 25. Ne5 {[%clk 0:02:12]}  Nxb2 {[%clk 0:00:37]} 26. Kxb2 {[%clk 0:02:02]}  Qb4+ {[%clk 0:00:37]} 27. Kc1 {[%clk 0:02:02]}  Qxc3 {[%clk 0:00:37]} 28. Nd7 {[%clk 0:01:58]}  Ka7 {[%clk 0:00:28]} 29. Qe1 {[%clk 0:01:49]}  Qa1+ {[%clk 0:00:25]} 30. Kd2 {[%clk 0:01:49]}  Rh2+ {[%clk 0:00:25]} 31. Kd3 {[%clk 0:01:49]}  Qxa2 {[%clk 0:00:25]} 32. Qc3 {[%clk 0:01:49]}  b6 {[%clk 0:00:06]} 33. Qxc6 {[%clk 0:01:48]}  Qa3+ {[%clk 0:00:05]} 34. c3 {[%clk 0:01:37]} 1-0


[Site "https://www.chess.com"]

[Event "Titled Tuesday Blitz March 22 Early 2022"]
[White "Baches Garcia, Guillermo"]
[Black "Tanenbaum, Zachary"]
[WhiteFideId "2209764"]
[BlackFideId "2060850"]
[WhiteElo "2467"]
[BlackElo "2168"]
[Result "1/2-1/2"]
[Round "08"]
[TimeControl "180+1"]
[Date "2022.03.22"]
[WhiteClock "0:00:43"]
[BlackClock "0:00:05"]

1. e4 {[%clk 0:03:00]}  e5 {[%clk 0:02:59]} 2. Nf3 {[%clk 0:03:00]}  Nc6 {[%clk 0:03:00]} 3. Nc3 {[%clk 0:03:01]}  Nf6 {[%clk 0:02:59]} 4. d4 {[%clk 0:03:02]}  exd4 {[%clk 0:03:00]} 5. Nxd4 {[%clk 0:03:02]}  Bb4 {[%clk 0:02:59]} 6. Nxc6 {[%clk 0:03:03]}  bxc6 {[%clk 0:03:00]} 7. Bd3 {[%clk 0:03:03]}  d5 {[%clk 0:03:01]} 8. Bd2 {[%clk 0:03:04]}  O-O {[%clk 0:03:00]} 9. O-O {[%clk 0:03:04]}  Bxc3 {[%clk 0:03:00]} 10. Bxc3 {[%clk 0:03:04]}  Nxe4 {[%clk 0:03:01]} 11. Bxe4 {[%clk 0:03:04]}  dxe4 {[%clk 0:03:01]} 12. Qe2 {[%clk 0:03:04]}  Bf5 {[%clk 0:02:39]} 13. Rad1 {[%clk 0:03:03]}  Qe7 {[%clk 0:02:37]} 14. Rd4 {[%clk 0:03:00]}  c5 {[%clk 0:02:36]} 15. Rd5 {[%clk 0:02:53]}  Bg6 {[%clk 0:02:35]} 16. Qe3 {[%clk 0:02:49]}  c4 {[%clk 0:01:46]} 17. h3 {[%clk 0:02:29]}  Rab8 {[%clk 0:01:31]} 18. Rfd1 {[%clk 0:02:27]}  Qe6 {[%clk 0:00:30]} 19. Re5 {[%clk 0:02:12]}  Qb6 {[%clk 0:00:26]} 20. Qg3 {[%clk 0:02:03]}  Rfe8 {[%clk 0:00:22]} 21. h4 {[%clk 0:01:59]}  h5 {[%clk 0:00:22]} 22. Rdd5 {[%clk 0:01:39]}  Rxe5 {[%clk 0:00:20]} 23. Qxe5 {[%clk 0:01:31]}  f6 {[%clk 0:00:14]} 24. Qg3 {[%clk 0:01:18]}  Kh7 {[%clk 0:00:14]} 25. Rd7 {[%clk 0:01:14]}  Re8 {[%clk 0:00:14]} 26. Qxc7 {[%clk 0:01:09]}  Qxc7 {[%clk 0:00:14]} 27. Rxc7 {[%clk 0:01:10]}  Kh6 {[%clk 0:00:14]} 28. Bd2+ {[%clk 0:01:08]}  Kh7 {[%clk 0:00:14]} 29. Rxa7 {[%clk 0:01:07]}  e3 {[%clk 0:00:13]} 30. Bxe3 {[%clk 0:01:06]}  Bxc2 {[%clk 0:00:13]} 31. Bd4 {[%clk 0:01:02]}  Kg6 {[%clk 0:00:14]} 32. a4 {[%clk 0:01:01]}  Re4 {[%clk 0:00:13]} 33. Bc3 {[%clk 0:00:58]}  Rxh4 {[%clk 0:00:12]} 34. a5 {[%clk 0:00:59]}  Re4 {[%clk 0:00:12]} 35. a6 {[%clk 0:00:57]}  Re6 {[%clk 0:00:12]} 36. f3 {[%clk 0:00:52]}  Ba4 {[%clk 0:00:11]} 37. Kf2 {[%clk 0:00:49]}  Bb5 {[%clk 0:00:11]} 38. Ra8 {[%clk 0:00:45]}  Bxa6 {[%clk 0:00:10]} 39. Rd8 {[%clk 0:00:45]}  Bb5 {[%clk 0:00:09]} 40. Rd5 {[%clk 0:00:44]}  Bc6 {[%clk 0:00:09]} 41. Rc5 {[%clk 0:00:44]}  Ba4 {[%clk 0:00:08]} 42. Rxc4 {[%clk 0:00:44]}  Bb5 {[%clk 0:00:08]} 43. Re4 {[%clk 0:00:44]}  Rxe4 {[%clk 0:00:05]} 44. fxe4 {[%clk 0:00:44]}  Kf7 {[%clk 0:00:05]} 45. e5 {[%clk 0:00:44]}  fxe5 {[%clk 0:00:05]} 46. Bxe5 {[%clk 0:00:44]}  g5 {[%clk 0:00:05]} 47. g3 {[%clk 0:00:43]}  Ke6 {[%clk 0:00:06]} 48. Bc7 {[%clk 0:00:43]}  Kf5 {[%clk 0:00:05]} 1/2-1/2


[Site "https://www.chess.com"]

[Event "Titled Tuesday Blitz March 22 Early 2022"]
[White "Bachmann, Axel"]
[Black "Gubanov, Oleg"]
[WhiteFideId "3700488"]
[BlackFideId "14115115"]
[WhiteElo "2587"]
[BlackElo "2080"]
[Result "0-1"]
[Round "08"]
[TimeControl "180+1"]
[Date "2022.03.22"]
[WhiteClock "0:00:02"]
[BlackClock "0:00:46"]

1. d4 {[%clk 0:03:00]}  b5 {[%clk 0:02:59]} 2. g3 {[%clk 0:02:53]}  Bb7 {[%clk 0:02:58]} 3. Nf3 {[%clk 0:02:52]}  Bxf3 {[%clk 0:02:55]} 4. exf3 {[%clk 0:02:51]}  c6 {[%clk 0:02:56]} 5. Bg2 {[%clk 0:02:50]}  d5 {[%clk 0:02:56]} 6. O-O {[%clk 0:02:50]}  Nd7 {[%clk 0:02:55]} 7. a4 {[%clk 0:02:48]}  a6 {[%clk 0:02:53]} 8. f4 {[%clk 0:02:43]}  e6 {[%clk 0:02:46]} 9. Re1 {[%clk 0:02:28]}  g6 {[%clk 0:02:45]} 10. Nd2 {[%clk 0:02:15]}  Ne7 {[%clk 0:02:44]} 11. Nf3 {[%clk 0:02:15]}  Bg7 {[%clk 0:02:44]} 12. Ng5 {[%clk 0:02:14]}  O-O {[%clk 0:02:41]} 13. Bh3 {[%clk 0:02:12]}  Nf5 {[%clk 0:02:29]} 14. c3 {[%clk 0:02:10]}  Qf6 {[%clk 0:02:13]} 15. b3 {[%clk 0:01:52]}  c5 {[%clk 0:02:01]} 16. Ba3 {[%clk 0:01:48]}  Rfc8 {[%clk 0:02:00]} 17. axb5 {[%clk 0:01:31]}  axb5 {[%clk 0:01:59]} 18. Bxc5 {[%clk 0:01:23]}  Rxa1 {[%clk 0:01:55]} 19. Qxa1 {[%clk 0:01:23]}  Nxc5 {[%clk 0:01:55]} 20. dxc5 {[%clk 0:01:21]}  Qxc3 {[%clk 0:01:55]} 21. Qxc3 {[%clk 0:00:34]}  Bxc3 {[%clk 0:01:56]} 22. Rc1 {[%clk 0:00:33]}  Rxc5 {[%clk 0:01:55]} 23. Bf1 {[%clk 0:00:20]}  b4 {[%clk 0:01:55]} 24. Rc2 {[%clk 0:00:17]}  Nd4 {[%clk 0:01:46]} 25. Ra2 {[%clk 0:00:16]}  h6 {[%clk 0:01:44]} 26. Ra8+ {[%clk 0:00:11]}  Kg7 {[%clk 0:01:43]} 27. Nh3 {[%clk 0:00:04]}  Nxb3 {[%clk 0:01:40]} 28. Kg2 {[%clk 0:00:03]}  Nd4 {[%clk 0:01:28]} 29. Ng1 {[%clk 0:00:02]}  b3 {[%clk 0:01:27]} 30. Rb8 {[%clk 0:00:02]}  b2 {[%clk 0:01:27]} 31. Bd3 {[%clk 0:00:02]}  Ra5 {[%clk 0:01:08]} 32. Rb7 {[%clk 0:00:02]}  Ra1 {[%clk 0:01:08]} 33. Nf3 {[%clk 0:00:02]}  Nxf3 {[%clk 0:00:48]} 34. Kxf3 {[%clk 0:00:02]}  Rd1 {[%clk 0:00:46]} 0-1


[Site "https://www.chess.com"]

[Event "Titled Tuesday Blitz March 22 Early 2022"]
[White "Demin, Vladimir"]
[Black "Kashefi, Amir Hosein"]
[WhiteFideId "4167457"]
[BlackFideId "12557935"]
[WhiteElo "2522"]
[BlackElo "2107"]
[Result "1-0"]
[Round "08"]
[TimeControl "180+1"]
[Date "2022.03.22"]
[WhiteClock "0:02:12"]
[BlackClock "0:02:22"]

1. e4 {[%clk 0:03:00]}  c6 {[%clk 0:02:58]} 2. d4 {[%clk 0:02:59]}  d5 {[%clk 0:02:59]} 3. e5 {[%clk 0:02:59]}  Bf5 {[%clk 0:02:58]} 4. Nc3 {[%clk 0:02:56]}  e6 {[%clk 0:02:58]} 5. g4 {[%clk 0:02:54]}  Bg6 {[%clk 0:02:57]} 6. Nge2 {[%clk 0:02:54]}  c5 {[%clk 0:02:55]} 7. h4 {[%clk 0:02:54]}  h5 {[%clk 0:02:54]} 8. Nf4 {[%clk 0:02:54]}  cxd4 {[%clk 0:02:53]} 9. Nxg6 {[%clk 0:02:45]}  fxg6 {[%clk 0:02:54]} 10. Qxd4 {[%clk 0:02:45]}  Nc6 {[%clk 0:02:53]} 11. Bb5 {[%clk 0:02:44]}  Ne7 {[%clk 0:02:40]} 12. Bg5 {[%clk 0:02:41]}  Qa5 {[%clk 0:02:38]} 13. Qc5 {[%clk 0:02:16]}  a6 {[%clk 0:02:27]} 14. Bxe7 {[%clk 0:02:14]}  Bxe7 {[%clk 0:02:22]} 15. Bxc6+ {[%clk 0:02:12]} 1-0


[Site "https://www.chess.com"]

[Event "Titled Tuesday Blitz March 22 Early 2022"]
[White "Dilanyan, Grigor"]
[Black "Gaehwiler, Gabriel"]
[WhiteFideId "13303570"]
[BlackFideId "1314530"]
[WhiteElo "2279"]
[BlackElo "2383"]
[Result "0-1"]
[Round "08"]
[TimeControl "180+1"]
[Date "2022.03.22"]
[WhiteClock "0:00:52"]
[BlackClock "0:00:06"]

1. e4 {[%clk 0:03:00]}  e5 {[%clk 0:02:58]} 2. Nf3 {[%clk 0:03:00]}  Nf6 {[%clk 0:02:57]} 3. Nxe5 {[%clk 0:02:57]}  d6 {[%clk 0:02:57]} 4. Nf3 {[%clk 0:02:57]}  Nxe4 {[%clk 0:02:57]} 5. Nc3 {[%clk 0:02:58]}  Nf6 {[%clk 0:02:57]} 6. d4 {[%clk 0:02:56]}  d5 {[%clk 0:02:57]} 7. Bg5 {[%clk 0:02:56]}  Be7 {[%clk 0:02:57]} 8. Bd3 {[%clk 0:02:54]}  O-O {[%clk 0:02:54]} 9. O-O {[%clk 0:02:52]}  Bg4 {[%clk 0:02:52]} 10. h3 {[%clk 0:02:52]}  Bh5 {[%clk 0:02:51]} 11. g4 {[%clk 0:02:51]}  Bg6 {[%clk 0:02:46]} 12. Ne5 {[%clk 0:02:50]}  Nc6 {[%clk 0:02:32]} 13. Nxc6 {[%clk 0:02:42]}  bxc6 {[%clk 0:02:33]} 14. Re1 {[%clk 0:02:42]}  Re8 {[%clk 0:02:12]} 15. Qf3 {[%clk 0:02:37]}  Ne4 {[%clk 0:01:57]} 16. Bxe7 {[%clk 0:02:35]}  Qxe7 {[%clk 0:01:57]} 17. Bxe4 {[%clk 0:02:35]}  dxe4 {[%clk 0:01:56]} 18. Qe3 {[%clk 0:02:33]}  f5 {[%clk 0:01:48]} 19. gxf5 {[%clk 0:02:30]}  Bxf5 {[%clk 0:01:49]} 20. a3 {[%clk 0:02:30]}  Qd7 {[%clk 0:01:36]} 21. Kh2 {[%clk 0:02:29]}  Re6 {[%clk 0:01:34]} 22. Rg1 {[%clk 0:02:27]}  Kh8 {[%clk 0:01:32]} 23. Rg3 {[%clk 0:02:25]}  Rf8 {[%clk 0:01:26]} 24. Rag1 {[%clk 0:02:25]}  Bg6 {[%clk 0:01:27]} 25. Na4 {[%clk 0:02:14]}  Ref6 {[%clk 0:01:24]} 26. R1g2 {[%clk 0:02:14]}  Rf3 {[%clk 0:01:21]} 27. Nc5 {[%clk 0:02:11]}  Qd5 {[%clk 0:00:44]} 28. Rxf3 {[%clk 0:01:48]}  Rxf3 {[%clk 0:00:35]} 29. Qg5 {[%clk 0:01:37]}  Qxd4 {[%clk 0:00:28]} 30. b4 {[%clk 0:01:32]}  Rxf2 {[%clk 0:00:19]} 31. Rxf2 {[%clk 0:01:32]}  Qxf2+ {[%clk 0:00:19]} 32. Kh1 {[%clk 0:01:33]}  Qf1+ {[%clk 0:00:16]} 33. Kh2 {[%clk 0:01:33]}  Qe2+ {[%clk 0:00:15]} 34. Kh1 {[%clk 0:01:34]}  Qf3+ {[%clk 0:00:15]} 35. Kh2 {[%clk 0:01:34]}  Qf2+ {[%clk 0:00:07]} 36. Kh1 {[%clk 0:01:34]}  Qf8 {[%clk 0:00:07]} 37. Ne6 {[%clk 0:01:32]}  Qd6 {[%clk 0:00:03]} 38. Qd8+ {[%clk 0:01:14]}  Qxd8 {[%clk 0:00:03]} 39. Nxd8 {[%clk 0:01:15]}  e3 {[%clk 0:00:03]} 40. Kg1 {[%clk 0:01:15]}  Bxc2 {[%clk 0:00:03]} 41. Nxc6 {[%clk 0:01:16]}  Be4 {[%clk 0:00:03]} 42. Nxa7 {[%clk 0:01:15]}  g5 {[%clk 0:00:03]} 43. Nb5 {[%clk 0:01:15]}  c6 {[%clk 0:00:03]} 44. Nc3 {[%clk 0:01:15]}  Bd3 {[%clk 0:00:02]} 45. a4 {[%clk 0:01:15]}  h5 {[%clk 0:00:03]} 46. b5 {[%clk 0:01:16]}  cxb5 {[%clk 0:00:04]} 47. axb5 {[%clk 0:01:17]}  g4 {[%clk 0:00:04]} 48. hxg4 {[%clk 0:01:17]}  hxg4 {[%clk 0:00:04]} 49. b6 {[%clk 0:01:18]}  Ba6 {[%clk 0:00:04]} 50. Ne4 {[%clk 0:01:10]}  e2 {[%clk 0:00:04]} 51. Kf2 {[%clk 0:01:10]}  Kg7 {[%clk 0:00:04]} 52. Ke1 {[%clk 0:01:09]}  Kf7 {[%clk 0:00:04]} 53. Nc5 {[%clk 0:01:07]}  g3 {[%clk 0:00:04]} 54. Nd7 {[%clk 0:00:48]}  g2 {[%clk 0:00:04]} 55. Ne5+ {[%clk 0:00:49]}  Ke7 {[%clk 0:00:02]} 56. Nf3 {[%clk 0:00:50]}  Bb7 {[%clk 0:00:02]} 57. Ng1 {[%clk 0:00:47]}  Ba6 {[%clk 0:00:03]} 58. Kf2 {[%clk 0:00:47]}  Kd6 {[%clk 0:00:03]} 59. Nf3 {[%clk 0:00:48]}  Kc6 {[%clk 0:00:03]} 60. Kxg2 {[%clk 0:00:47]}  Kxb6 {[%clk 0:00:04]} 61. Ne1 {[%clk 0:00:47]}  Kc5 {[%clk 0:00:04]} 62. Kf2 {[%clk 0:00:48]}  Kd4 {[%clk 0:00:05]} 63. Nf3+ {[%clk 0:00:49]}  Kd3 {[%clk 0:00:05]} 64. Ne1+ {[%clk 0:00:50]}  Kd2 {[%clk 0:00:05]} 65. Nf3+ {[%clk 0:00:50]}  Kd1 {[%clk 0:00:06]} 66. Ne1 {[%clk 0:00:51]}  Bc4 {[%clk 0:00:06]} 67. Nf3 {[%clk 0:00:51]}  Bd5 {[%clk 0:00:06]} 68. Ne1 {[%clk 0:00:52]}  Kd2 {[%clk 0:00:06]} 0-1


[Site "https://www.chess.com"]

[Event "Titled Tuesday Blitz March 22 Early 2022"]
[White "Dilmukhametov, Artur"]
[Black "Stefanov, Plamen"]
[WhiteFideId "24179922"]
[BlackFideId "2900980"]
[WhiteElo "2237"]
[BlackElo "2137"]
[Result "0-1"]
[Round "08"]
[TimeControl "180+1"]
[Date "2022.03.22"]
[WhiteClock "0:01:03"]
[BlackClock "0:01:53"]

1. d4 {[%clk 0:03:00]}  Nf6 {[%clk 0:02:59]} 2. c4 {[%clk 0:03:00]}  c5 {[%clk 0:02:59]} 3. d5 {[%clk 0:02:58]}  b5 {[%clk 0:03:00]} 4. cxb5 {[%clk 0:02:53]}  a6 {[%clk 0:03:00]} 5. bxa6 {[%clk 0:02:52]}  g6 {[%clk 0:02:59]} 6. Nc3 {[%clk 0:02:52]}  Bxa6 {[%clk 0:02:58]} 7. Bg5 {[%clk 0:02:49]}  Bg7 {[%clk 0:02:57]} 8. Nf3 {[%clk 0:02:48]}  d6 {[%clk 0:02:57]} 9. e3 {[%clk 0:02:48]}  Bxf1 {[%clk 0:02:56]} 10. Rxf1 {[%clk 0:02:47]}  O-O {[%clk 0:02:56]} 11. Qd3 {[%clk 0:02:46]}  Nbd7 {[%clk 0:02:55]} 12. O-O-O {[%clk 0:02:46]}  Qa5 {[%clk 0:02:53]} 13. Qc4 {[%clk 0:02:40]}  Rfb8 {[%clk 0:02:51]} 14. Rd2 {[%clk 0:02:36]}  Rb4 {[%clk 0:02:50]} 15. Qd3 {[%clk 0:02:32]}  Ne4 {[%clk 0:02:21]} 16. Nxe4 {[%clk 0:01:59]}  Qxa2 {[%clk 0:02:19]} 17. Qb1 {[%clk 0:01:57]}  Qc4+ {[%clk 0:02:10]} 18. Kd1 {[%clk 0:01:28]}  Qxf1+ {[%clk 0:02:09]} 19. Ne1 {[%clk 0:01:18]}  Rxe4 {[%clk 0:02:09]} 20. Qxe4 {[%clk 0:01:14]}  Ra1+ {[%clk 0:02:08]} 21. Kc2 {[%clk 0:01:14]}  Qxe1 {[%clk 0:01:58]} 22. Qd3 {[%clk 0:01:06]}  Qb1+ {[%clk 0:01:56]} 23. Kb3 {[%clk 0:01:05]}  Qa2+ {[%clk 0:01:54]} 24. Kc2 {[%clk 0:01:03]}  Qxb2# {[%clk 0:01:53]} 0-1


[Site "https://www.chess.com"]

[Event "Titled Tuesday Blitz March 22 Early 2022"]
[White "Dinu, Dumitru-Daniel"]
[Black "Rudykh, Stepan"]
[WhiteFideId "1208403"]
[BlackFideId "4180321"]
[WhiteElo "2240"]
[BlackElo "2138"]
[Result "1-0"]
[Round "08"]
[TimeControl "180+1"]
[Date "2022.03.22"]
[WhiteClock "0:02:16"]
[BlackClock "0:02:39"]

1. e4 {[%clk 0:03:00]}  e6 {[%clk 0:03:00]} 2. d4 {[%clk 0:03:00]}  d5 {[%clk 0:03:01]} 3. exd5 {[%clk 0:03:00]}  exd5 {[%clk 0:03:01]} 4. Nf3 {[%clk 0:02:58]}  Nf6 {[%clk 0:03:02]} 5. Bd3 {[%clk 0:02:58]}  c5 {[%clk 0:03:02]} 6. dxc5 {[%clk 0:02:56]}  Bxc5 {[%clk 0:03:02]} 7. O-O {[%clk 0:02:56]}  O-O {[%clk 0:03:02]} 8. Nbd2 {[%clk 0:02:55]}  Nc6 {[%clk 0:03:02]} 9. Nb3 {[%clk 0:02:55]}  Bb6 {[%clk 0:03:01]} 10. Bg5 {[%clk 0:02:55]}  Bg4 {[%clk 0:02:59]} 11. h3 {[%clk 0:02:53]}  Bh5 {[%clk 0:02:55]} 12. c3 {[%clk 0:02:53]}  Qd6 {[%clk 0:02:52]} 13. Re1 {[%clk 0:02:50]}  h6 {[%clk 0:02:52]} 14. Bh4 {[%clk 0:02:50]}  g5 {[%clk 0:02:51]} 15. g4 {[%clk 0:02:38]}  Nxg4 {[%clk 0:02:43]} 16. hxg4 {[%clk 0:02:31]}  Bxg4 {[%clk 0:02:44]} 17. Kh1 {[%clk 0:02:23]}  gxh4 {[%clk 0:02:41]} 18. Rg1 {[%clk 0:02:23]}  Qf4 {[%clk 0:02:39]} 19. Nh2 {[%clk 0:02:16]} 1-0


[Site "https://www.chess.com"]

[Event "Titled Tuesday Blitz March 22 Early 2022"]
[White "Ferreira, Vitor Hugo Vieira"]
[Black "Yang, Kaiqi"]
[WhiteFideId "2119765"]
[BlackFideId "8604398"]
[WhiteElo "2165"]
[BlackElo "2373"]
[Result "0-1"]
[Round "08"]
[TimeControl "180+1"]
[Date "2022.03.22"]
[WhiteClock "0:01:47"]
[BlackClock "0:00:41"]

1. Nf3 {[%clk 0:03:00]}  d5 {[%clk 0:02:58]} 2. g3 {[%clk 0:03:01]}  Nf6 {[%clk 0:02:58]} 3. Bg2 {[%clk 0:03:01]}  Bf5 {[%clk 0:02:57]} 4. O-O {[%clk 0:03:02]}  e6 {[%clk 0:02:57]} 5. c4 {[%clk 0:03:02]}  Be7 {[%clk 0:02:42]} 6. Qb3 {[%clk 0:02:55]}  Qc8 {[%clk 0:02:40]} 7. cxd5 {[%clk 0:02:51]}  exd5 {[%clk 0:02:39]} 8. Nd4 {[%clk 0:02:51]}  Be4 {[%clk 0:02:33]} 9. Nc3 {[%clk 0:02:47]}  Bxg2 {[%clk 0:02:32]} 10. Kxg2 {[%clk 0:02:47]}  c6 {[%clk 0:02:32]} 11. d3 {[%clk 0:02:47]}  Na6 {[%clk 0:02:28]} 12. e4 {[%clk 0:02:45]}  Nc5 {[%clk 0:02:26]} 13. Qc2 {[%clk 0:02:46]}  O-O {[%clk 0:01:54]} 14. e5 {[%clk 0:02:44]}  Ne8 {[%clk 0:01:47]} 15. f4 {[%clk 0:02:41]}  f6 {[%clk 0:01:44]} 16. Nf3 {[%clk 0:02:30]}  Qf5 {[%clk 0:01:35]} 17. exf6 {[%clk 0:02:21]}  Bxf6 {[%clk 0:01:12]} 18. Ne2 {[%clk 0:02:11]}  Nxd3 {[%clk 0:01:04]} 19. Ned4 {[%clk 0:02:11]}  Bxd4 {[%clk 0:00:47]} 20. Nxd4 {[%clk 0:02:11]}  Qe4+ {[%clk 0:00:47]} 21. Nf3 {[%clk 0:01:54]}  Nxf4+ {[%clk 0:00:46]} 22. Bxf4 {[%clk 0:01:54]}  Qxc2+ {[%clk 0:00:46]} 23. Rf2 {[%clk 0:01:54]}  Qg6 {[%clk 0:00:45]} 24. Raf1 {[%clk 0:01:55]}  Nf6 {[%clk 0:00:45]} 25. Ne5 {[%clk 0:01:55]}  Qe4+ {[%clk 0:00:45]} 26. Kg1 {[%clk 0:01:55]}  Rae8 {[%clk 0:00:45]} 27. Nf3 {[%clk 0:01:53]}  Ng4 {[%clk 0:00:45]} 28. Rd2 {[%clk 0:01:51]}  h6 {[%clk 0:00:43]} 29. h3 {[%clk 0:01:51]}  Ne3 {[%clk 0:00:42]} 30. Re1 {[%clk 0:01:50]}  Qxf3 {[%clk 0:00:42]} 31. Rxe3 {[%clk 0:01:50]}  Rxe3 {[%clk 0:00:41]} 32. Rf2 {[%clk 0:01:48]}  Re1+ {[%clk 0:00:41]} 33. Kh2 {[%clk 0:01:47]}  Rh1# {[%clk 0:00:41]} 0-1


[Site "https://www.chess.com"]

[Event "Titled Tuesday Blitz March 22 Early 2022"]
[White "Fiol, Fabrice"]
[Black "Kett, Tim"]
[WhiteFideId "611670"]
[BlackFideId "1801210"]
[WhiteElo "2459"]
[BlackElo "2098"]
[Result "0-1"]
[Round "08"]
[TimeControl "180+1"]
[Date "2022.03.22"]
[WhiteClock "0:00:18"]
[BlackClock "0:00:06"]

1. e4 {[%clk 0:03:00]}  e5 {[%clk 0:02:59]} 2. Nf3 {[%clk 0:02:59]}  Nc6 {[%clk 0:03:00]} 3. Bc4 {[%clk 0:02:59]}  Nf6 {[%clk 0:02:59]} 4. d3 {[%clk 0:02:59]}  Be7 {[%clk 0:02:59]} 5. c3 {[%clk 0:02:59]}  d6 {[%clk 0:02:58]} 6. h3 {[%clk 0:02:58]}  Na5 {[%clk 0:02:58]} 7. Bb3 {[%clk 0:02:56]}  Nxb3 {[%clk 0:02:57]} 8. axb3 {[%clk 0:02:57]}  O-O {[%clk 0:02:56]} 9. O-O {[%clk 0:02:57]}  Re8 {[%clk 0:02:38]} 10. Nbd2 {[%clk 0:02:53]}  Bf8 {[%clk 0:02:37]} 11. Re1 {[%clk 0:02:52]}  d5 {[%clk 0:02:34]} 12. b4 {[%clk 0:02:52]}  dxe4 {[%clk 0:02:14]} 13. dxe4 {[%clk 0:02:52]}  c5 {[%clk 0:02:11]} 14. b5 {[%clk 0:02:48]}  a6 {[%clk 0:01:53]} 15. Nc4 {[%clk 0:02:11]}  Qxd1 {[%clk 0:01:51]} 16. Rxd1 {[%clk 0:02:12]}  Nxe4 {[%clk 0:01:49]} 17. Ncxe5 {[%clk 0:02:12]}  Be6 {[%clk 0:01:37]} 18. bxa6 {[%clk 0:02:06]}  Rxa6 {[%clk 0:01:34]} 19. Rxa6 {[%clk 0:02:05]}  bxa6 {[%clk 0:01:35]} 20. Be3 {[%clk 0:02:04]}  Rb8 {[%clk 0:01:30]} 21. Nc6 {[%clk 0:01:41]}  Rxb2 {[%clk 0:01:17]} 22. Rd8 {[%clk 0:01:41]}  f6 {[%clk 0:01:17]} 23. Nd2 {[%clk 0:00:41]}  Nxd2 {[%clk 0:01:09]} 24. Bxd2 {[%clk 0:00:41]}  Kf7 {[%clk 0:01:02]} 25. Bf4 {[%clk 0:00:40]}  Rc2 {[%clk 0:00:51]} 26. Ra8 {[%clk 0:00:37]}  Rxc3 {[%clk 0:00:47]} 27. Nd8+ {[%clk 0:00:31]}  Ke7 {[%clk 0:00:44]} 28. Nc6+ {[%clk 0:00:31]}  Kf7 {[%clk 0:00:36]} 29. Rxa6 {[%clk 0:00:25]}  Bd5 {[%clk 0:00:27]} 30. Nd8+ {[%clk 0:00:20]}  Kg6 {[%clk 0:00:27]} 31. Kh2 {[%clk 0:00:14]}  c4 {[%clk 0:00:27]} 32. g4 {[%clk 0:00:11]}  Rf3 {[%clk 0:00:25]} 33. Bg3 {[%clk 0:00:10]}  Bc5 {[%clk 0:00:21]} 34. Ne6 {[%clk 0:00:06]}  Bxe6 {[%clk 0:00:20]} 35. Rxe6 {[%clk 0:00:05]}  Bxf2 {[%clk 0:00:20]} 36. Kg2 {[%clk 0:00:05]}  Rxg3+ {[%clk 0:00:19]} 37. Kxf2 {[%clk 0:00:05]}  Rxh3 {[%clk 0:00:19]} 38. Rc6 {[%clk 0:00:06]}  c3 {[%clk 0:00:18]} 39. Rc4 {[%clk 0:00:06]}  Rd3 {[%clk 0:00:17]} 40. Kg2 {[%clk 0:00:06]}  Rd2+ {[%clk 0:00:17]} 41. Kf3 {[%clk 0:00:06]}  c2 {[%clk 0:00:17]} 42. Ke3 {[%clk 0:00:06]}  Rh2 {[%clk 0:00:17]} 43. Kf3 {[%clk 0:00:07]}  Kg5 {[%clk 0:00:17]} 44. Kg3 {[%clk 0:00:07]}  Rd2 {[%clk 0:00:17]} 45. Kf3 {[%clk 0:00:07]}  h5 {[%clk 0:00:16]} 46. gxh5 {[%clk 0:00:07]}  Kxh5 {[%clk 0:00:16]} 47. Ke3 {[%clk 0:00:08]}  Rh2 {[%clk 0:00:15]} 48. Kf3 {[%clk 0:00:08]}  g5 {[%clk 0:00:14]} 49. Kg3 {[%clk 0:00:08]}  Rd2 {[%clk 0:00:15]} 50. Kf3 {[%clk 0:00:09]}  f5 {[%clk 0:00:15]} 51. Ke3 {[%clk 0:00:10]}  Rh2 {[%clk 0:00:15]} 52. Kf3 {[%clk 0:00:10]}  g4+ {[%clk 0:00:12]} 53. Kg3 {[%clk 0:00:10]}  Rh3+ {[%clk 0:00:11]} 54. Kg2 {[%clk 0:00:10]}  f4 {[%clk 0:00:10]} 55. Rxc2 {[%clk 0:00:09]}  f3+ {[%clk 0:00:10]} 56. Kg1 {[%clk 0:00:09]}  g3 {[%clk 0:00:06]} 57. Rc4 {[%clk 0:00:09]}  f2+ {[%clk 0:00:05]} 58. Kg2 {[%clk 0:00:09]}  Rh2+ {[%clk 0:00:05]} 59. Kxg3 {[%clk 0:00:09]}  f1=Q {[%clk 0:00:05]} 60. Rc5+ {[%clk 0:00:10]}  Kg6 {[%clk 0:00:04]} 61. Rc6+ {[%clk 0:00:10]}  Kf5 {[%clk 0:00:04]} 62. Rc5+ {[%clk 0:00:10]}  Ke4 {[%clk 0:00:04]} 63. Kxh2 {[%clk 0:00:10]}  Qf2+ {[%clk 0:00:04]} 64. Kh3 {[%clk 0:00:11]}  Qxc5 {[%clk 0:00:04]} 65. Kg4 {[%clk 0:00:12]}  Qd6 {[%clk 0:00:03]} 66. Kg5 {[%clk 0:00:13]}  Qd7 {[%clk 0:00:03]} 67. Kg6 {[%clk 0:00:14]}  Qc7 {[%clk 0:00:04]} 68. Kf6 {[%clk 0:00:14]}  Qb7 {[%clk 0:00:05]} 69. Ke6 {[%clk 0:00:14]}  Qa7 {[%clk 0:00:05]} 70. Kd6 {[%clk 0:00:14]}  Qa6+ {[%clk 0:00:06]} 71. Kc5 {[%clk 0:00:15]}  Qa5+ {[%clk 0:00:06]} 72. Kc4 {[%clk 0:00:16]}  Qc7+ {[%clk 0:00:07]} 73. Kb5 {[%clk 0:00:15]}  Kd4 {[%clk 0:00:07]} 74. Ka6 {[%clk 0:00:16]}  Qb8 {[%clk 0:00:07]} 75. Ka5 {[%clk 0:00:17]}  Kc4 {[%clk 0:00:07]} 76. Ka6 {[%clk 0:00:18]}  Kc5 {[%clk 0:00:06]} 77. Ka5 {[%clk 0:00:18]}  Qa8# {[%clk 0:00:06]} 0-1


[Site "https://www.chess.com"]